Cogmind - Beta 16 --- EXPLORER MODE // 2025.11.20 @ 13:06:08 Player: K.K.Y. Result: Destroyed by Y-54 Guardian with Flak Gun Performance ------------- Evolutions (0) 0 Regions Visited (4) 800 Robots Destroyed (35) 175 Value Destroyed (809) 809 Prototype IDs (12) 240 Alien Tech Used (0) 0 Bonus (-25) -25 TOTAL SCORE: 1999 Bonus ------- Friendly Fire -25 Cogmind --------- Core Integrity 0/250 Matter 289/300 Energy 69/100 System Corruption 1% Temperature Cool (48) Movement Treading (260) Ox1 Location -7/Recycling Parts ------- > --- POWER (1) -------- (None) > --- PROPULSION (2) --- Spiked Treads > --- UTILITY (3) ------ Medium Storage Unit Machine Analyzer Makeshift Light Armor Plating > --- WEAPON (2) ------- Subdweller Beam Cannon Light Assault Rifle > --- INVENTORY (10) --- Small Storage Unit Makeshift Spear Peak State ------------ > --- POWER ------------ (None) > --- PROPULSION ------- Light Treads Spiked Treads > --- UTILITY ---------- Medium Storage Unit Machine Analyzer Makeshift Hacking Suite > --- WEAPON ----------- Riot Gun Riot Gun > --- INVENTORY -------- Small Storage Unit Makeshift Light Armor Plating Light Assault Rifle Mining Laser [Rating: 17] Favorites ----------- Power Ion Engine Engine Ion Engine Propulsion Light Treads Treads Light Treads Leg Aluminum Leg Utility Medium Storage Unit Storage Medium Storage Unit Processor Machine Analyzer Hackware Makeshift Hacking Suite Protection Light Armor Plating Weapon Light Assault Rifle Energy Gun Riot Gun Energy Cannon Subdweller Beam Cannon Ballistic Gun Light Assault Rifle Ballistic Cannon Light Cannon Special Weapon Mining Laser Build | -11 -10 -10 -10 -7 ------- Run | Yrd Mat Min Sub Rec Slots Evolved 1 | . 1 . . . Power . | . . . . . Propulsion . | . . . . . Utility 1 | . 1 . . . Weapon . | . . . . . Parts Attached 23 | 3 6 3 10 1 Power 2 | . 1 . 1 . Engine 2 | . 1 . 1 . Core . | . . . . . Reactor . | . . . . . Propulsion 7 | 2 1 2 2 . Treads 6 | 1 1 2 2 . Leg 1 | 1 . . . . Wheel . | . . . . . Hover . | . . . . . Flight . | . . . . . Utility 6 | . 3 1 1 1 Device . | . . . . . Storage 1 | . 1 . . . Processor 1 | . 1 . . . Hackware 1 | . . . 1 . Protection 3 | . 1 1 . 1 Artifact . | . . . . . Weapon 8 | 1 1 . 6 . Energy Gun 2 | . . . 2 . Energy Cannon 2 | . . . 2 . Ballistic Gun 1 | 1 . . . . Ballistic Cannon 2 | . 1 . 1 . Launcher . | . . . . . Special Weapon 1 | . . . 1 . Impact Weapon . | . . . . . Slashing Weapon . | . . . . . Piercing Weapon . | . . . . . Special Melee Weapon . | . . . . . Unidentified Prototypes . | . . . . . Parts Lost 10 | . . . 10 . Power 1 | . . . 1 . Propulsion 2 | . . . 2 . Utility 2 | . . . 2 . Weapon 5 | . . . 5 . Highest Loss Streak 3 | . . . 3 . To Critical Strikes . | . . . . . Average Backups 3 | 4 1 2 3 3 Power . | . . . . . Propulsion . | 1 . . . . Utility 1 | 1 . 1 1 2 Weapon 1 | . . 1 1 1 Tool/Special . | . . . . . Unused Backups 5 | . 1 2 . 2 Power 1 | . . 1 . . Propulsion 2 | . 1 1 . . Utility 1 | . . . . 1 Weapon 1 | . . . . 1 Tool/Special . | . . . . . Average Slot Usage (%) 77 | . 85 100 71 62 Engine 4 | . 9 12 2 . Treads 19 | . 23 25 18 12 Storage 11 | . 9 12 12 12 Processor 11 | . 9 12 12 12 Hackware 1 | . . . 2 . Protection 4 | . 10 12 1 . Energy Gun 1 | . . . 1 . Energy Cannon 4 | . . . 5 12 Ballistic Gun 8 | . 12 12 6 12 Ballistic Cannon 6 | . 9 12 5 . Peak Build Rating 17 | 3 10 10 17 13 Average Rating 10 | 1 8 10 10 9 On Entrance 6 | . 3 10 10 9 Avg Prop Armor Cover (%) 19 | 19 . . . . Naked Turns . | . . . . . Heaviest Build 24 | 1 22 22 24 19 Greatest Support 40 | 20 40 40 40 20 Greatest Overweight (x) 6 | . 6 . . . Average Overweight (x) . | . . . . . Largest Inventory Capacity 10 | 5 10 10 10 10 Average Capacity 9 | 5 8 10 10 10 Most Carried 7 | 5 5 7 6 3 Average Carried 3 | 4 1 2 3 2 Final Capacity 10 | 5 10 10 10 10 Final Carried 5 | 5 5 2 3 2 Class Distribution -------------------- 100% | Hacker-Mutant Dominant Class ---------------- Hacker-Mutant | -10/Materials Hacker-Mutant | -10/Mines Hacker-Mutant | -10/Subcaves Hacker-Mutant | -7/Recycling Resources | -11 -10 -10 -10 -7 ----------- Run | Yrd Mat Min Sub Rec Matter Collected 948 | 176 262 153 357 . Remotely . | . . . . . Salvage Created 961 | . 443 190 328 . Parts 67 | . 28 15 24 . Haulers Intercepted 2 | . 2 . . . Recyclers Shooed 3 | . 3 . . . Parts Field Recycled . | . . . . . Retrieved Matter . | . . . . . Parts Self-Destructed . | . . . . . Prevented . | . . . . . Parts Restored . | . . . . . Kills | -11 -10 -10 -10 -7 ------- Run | Yrd Mat Min Sub Rec Combat Hostiles Destroyed 26 | . 8 6 12 . Guns 12 | . 5 2 5 . Cannons 12 | . 3 4 5 . AOE 1 | . . . 1 . Classes Destroyed 10 | . 6 2 2 . Worker 1 | . . 1 . . Hauler 2 | . 2 . . . Recycler 2 | . 2 . . . Mechanic 1 | . 1 . . . Turret 2 | . . . 2 . Watcher 1 | . 1 . . . Swarmer 11 | . 5 2 4 . Grunt 5 | . 3 2 . . Sentry 2 | . . 2 . . Subdweller 8 | . . . 8 . Best Kill Streak 4 | . 4 2 4 . Combat Bots Only 4 | . 2 2 4 . Max Kills in Single Turn 2 | . 1 2 2 . Gunslinging . | . . . . . Exploded 1 | . . . 1 . Melee . | . . . . . Uniques/NPCs Destroyed . | . . . . . Combat | -11 -10 -10 -10 -7 -------- Run | Yrd Mat Min Sub Rec Hostile Shots Fired 228 | . 29 32 158 9 Missed 75 | . 9 7 57 2 Hits 153 | . 20 25 101 7 Projectile 153 | . 20 25 101 7 AOE 3 | . . . 3 . Critical Strikes 1 | . . 1 . . Damage Taken 1606 | . 170 212 1194 30 Core 250 | . 13 19 212 6 Absorbed by Shields . | . . . . . Ignored by Resistances 990 | . 110 129 731 20 Core Remaining (%) 100 | 100 . . . . Volleys Fired 141 | . 31 14 95 1 Largest 2 | . 2 2 2 2 Hottest 150 | . 50 50 150 100 Shots Fired 223 | . 57 28 136 2 Gun 108 | . 31 14 62 1 Cannon 105 | . 26 14 64 1 Launcher . | . . . . . Special 10 | . . . 10 . Kinetic 155 | . 57 28 69 1 Thermal 43 | . . . 42 1 Explosive . | . . . . . Electromagnetic 25 | . . . 25 . Robot Hit Streak 38 | . 12 34 38 16 Robot Miss Streak 2 | . 2 1 2 . Penetration Max . | . . . . . Secondary Targets . | . . . . . Shots Hit Robots 141 | . 44 25 70 2 Core Hits 58 | . 19 11 27 1 Critical Kills 1 | . 1 . . . Critical Parts Destroyed . | . . . . . Critical Strikes 2 | . 2 . . . Destroy 1 | . 1 . . . Blast 1 | . 1 . . . Melee Attacks . | . . . . . Impact . | . . . . . Slashing . | . . . . . Piercing . | . . . . . Sneak Attacks . | . . . . . Combat Hostiles . | . . . . . Follow-up Attacks . | . . . . . Damage Inflicted 2128 | . 504 339 1251 34 Guns 820 | . 223 104 487 6 Cannons 1193 | . 281 226 658 28 Explosions 34 | . . . 34 . Melee . | . . . . . Ramming 9 | . . 9 . . Kinetic 1228 | . 504 330 388 6 Thermal 512 | . . . 484 28 Explosive . | . . . . . Electromagnetic 379 | . . . 379 . Impact . | . . . . . Slashing . | . . . . . Piercing . | . . . . . Highest Corruption 1 | . 1 1 1 1 Average Corruption 1 | . 1 1 1 1 Corruption Purged . | . . . . . Corruption Blocked . | . . . . . Effects 50 | . . 9 41 . Message Errors 12 | . . . 12 . Matter Fused 12 | . . 2 10 . Heat Flow Errors 8 | . . 4 4 . Energy Discharges 6 | . . . 6 . Data Loss (minor) 6 | . . 2 4 . Data Loss (major) 3 | . . 1 2 . Misfires 1 | . . . 1 . Alerts 2 | . . . 2 . Overload Shots . | . . . . . Overflow Damage 8 | . . 8 . . Projectiles 8 | . . 8 . . Explosions . | . . . . . Melee . | . . . . . Knockbacks 6 | . 3 1 2 . Impact . | . . . . . Kinetic 6 | . 3 1 2 . Secondary . | . . . . . Self-Inflicted Damage 29 | . . . 29 . Shots 2 | . . . 2 . Rammed 1 | . . 1 . . Targets Rammed 1 | . . 1 . . Kicked . | . . . . . Crushed . | . . . . . Highest Temperature 270 | . 92 270 166 30 Average Temperature 41 | . 28 66 24 30 Received Heat Transfer 663 | . 60 123 462 18 Siege Activations . | . . . . . Martial Activations . | . . . . . Shielding Activations . | . . . . . Robots Disrupted . | . . . . . Combat Hostiles . | . . . . . Robots Corrupted 1 | . . . 1 . Combat Hostiles 1 | . . . 1 . Parts Fried . | . . . . . Impact Corruptions . | . . . . . Robots Melted . | . . . . . Combat Hostiles . | . . . . . Parts Melted . | . . . . . Heat Transferred 705 | . . . 668 37 Parts Sabotaged . | . . . . . Parts Stolen . | . . . . . Parts Stripped . | . . . . . Power Chain Reactions 2 | . . . 2 . Alert | -11 -10 -10 -10 -7 ------- Run | Yrd Mat Min Sub Rec Maximum Alert Level . | . . . . . Low Security (%) 100 | 100 100 100 . 100 Level 1 . | . . . . . Level 2 . | . . . . . Level 3 . | . . . . . Level 4 . | . . . . . Level 5 . | . . . . . High Security . | . . . . . Max Security . | . . . . . Peak Influence 66 | . 66 49 . . Initial 14 | . . 14 . . Average 6 | . 10 4 . . Influence Increases 763 | . 242 161 360 . Destroy 0b10 Robot/C 400 | . 160 120 120 . Destroy 0b10 Robot/NC 35 | . 30 5 . . Destroy Leader 56 | . 36 20 . . Allied During Kill 1 | . . 1 . . Destroy Structure 1 | . 1 . . . Lose Combat Pursuer 270 | . 15 15 240 . Influence Decreases 763 | . 191 212 360 . Entered New Map 37 | . . 37 . . Time Decay 696 | . 191 175 330 . Lost Part 30 | . . . 30 . Squads Dispatched . | . . . . . Investigation . | . . . . . Extermination . | . . . . . Reinforcement . | . . . . . Assault . | . . . . . Garrison . | . . . . . Intercept . | . . . . . Searches Triggered . | . . . . . Construction Impeded . | . . . . . Haulers Reinforced . | . . . . . Active Scanning Responses . | . . . . . Cargo Convoy Interrupts . | . . . . . Stealth | -11 -10 -10 -10 -7 --------- Run | Yrd Mat Min Sub Rec Distress Signals 1 | . 1 . . . Communications Jammed . | . . . . . Distress Signals . | . . . . . Times Spotted 45 | . 13 7 24 1 Peak Tracking Total 4 | . 4 2 4 1 Tactical Retreats 5 | . 1 1 3 . Traps | -11 -10 -10 -10 -7 ------- Run | Yrd Mat Min Sub Rec Traps Triggered 7 | . 5 . 2 . Indirectly . | . . . . . Trap Hack Attempts . | . . . . . Triggered . | . . . . . Disarmed . | . . . . . Reprogrammed . | . . . . . Reused . | . . . . . Traps Extracted . | . . . . . Installed . | . . . . . Triggered . | . . . . . Machines | -11 -10 -10 -10 -7 ---------- Run | Yrd Mat Min Sub Rec Machines Disabled 2 | . . . 2 . Max in Single Turn 1 | . . . 1 . Machines Repaired . | . . . . . Machines Dismantled . | . . . . . Machines Sabotaged . | . . . . . Overloaded Fab Kills . | . . . . . Hacking | -11 -10 -10 -10 -7 --------- Run | Yrd Mat Min Sub Rec Machines Accessed 3 | . . . 3 . Terminals . | . . . . . Fabricators . | . . . . . Repair Stations . | . . . . . Recycling Units . | . . . . . Scanalyzers . | . . . . . Garrison Access . | . . . . . Total Hacks 4 | . . . 4 . Successful 4 | . . . 4 . Failed . | . . . . . Catastrophic . | . . . . . Database Lockouts . | . . . . . Manual . | . . . . . Terminals . | . . . . . Fabricators . | . . . . . Repair Stations . | . . . . . Recycling Units . | . . . . . Scanalyzers . | . . . . . Garrison Access . | . . . . . Terminal Hacks 4 | . . . 4 . Record 1 | . . . 1 . Open Door 1 | . . . 1 . Proto ID Catalog 1 | . . . 1 . Release Object 1 | . . . 1 . Fabricator Hacks . | . . . . . Repair Station Hacks . | . . . . . Recycling Unit Hacks . | . . . . . Scanalyzer . | . . . . . Garrison Access Hacks . | . . . . . Unauthorized Hacks . | . . . . . Terminals . | . . . . . Fabricators . | . . . . . Repair Stations . | . . . . . Recycling Units . | . . . . . Scanalyzers . | . . . . . Garrison Access . | . . . . . Data Cores Recovered . | . . . . . Used . | . . . . . Hacking Detections . | . . . . . Full Trace Events . | . . . . . Feedback Events . | . . . . . Feedback Blocked . | . . . . . Robot Schematics Acquired . | . . . . . Robots Built . | . . . . . Authchips . | . . . . . Time . | . . . . . Total Robot Build Rating . | . . . . . Part Schematics Acquired . | . . . . . Parts Built . | . . . . . Authchips . | . . . . . Time . | . . . . . Total Part Build Rating . | . . . . . Part Studies Acquired . | . . . . . Parts Repaired . | . . . . . Time . | . . . . . Parts Recycled . | . . . . . Recycled Matter . | . . . . . Retrieved Matter . | . . . . . Retrieved Components . | . . . . . Parts Scanalyzed . | . . . . . Part Schematics Acquired . | . . . . . Parts Damaged . | . . . . . Bothacking | -11 -10 -10 -10 -7 ------------ Run | Yrd Mat Min Sub Rec Used RIF Installer . | . . . . . Robots Hacked . | . . . . . Non-combat . | . . . . . Combat . | . . . . . Robot Hacks Applied . | . . . . . Relay Couplers Released . | . . . . . Fabnet Peak Effective % . | . . . . . Robots Rewired . | . . . . . Allies Hacked . | . . . . . Hacks Repelled . | . . . . . Allies | -11 -10 -10 -10 -7 -------- Run | Yrd Mat Min Sub Rec Total Allies 3 | . . 3 . . Largest Group 3 | . . 3 2 . Highest-Rated Group 40 | . . 40 32 . Highest-Rated Ally 16 | . . 16 16 . Total Orders . | . . . . . Ally Attacks 9 | . . 1 8 . Total Damage 74 | . . 10 64 . Kills . | . . . . . Allies Corrupted . | . . . . . Allies Melted . | . . . . . Intel | -11 -10 -10 -10 -7 ------- Run | Yrd Mat Min Sub Rec Active Infowar (turns) 6221 | . 469 1022 4707 23 Machine Analysis 6221 | . 469 1022 4707 23 Robot Analysis Total . | . . . . . Derelict Logs Recovered 3 | . . 1 2 . Drone Launches . | . . . . . Drone Recoveries . | . . . . . Exploration | -11 -10 -10 -10 -7 ------------- Run | Yrd Mat Min Sub Rec Turns Passed 6404 | 55 597 1022 4707 23 Spaces Moved 3635 | 50 299 534 2739 13 Core 24 | 22 2 . . . Treads 3587 | 4 297 534 2739 13 Legs 24 | 24 . . . . Wheels . | . . . . . Hover . | . . . . . Flight . | . . . . . Fastest Speed 50 | 50 160 160 160 160 Average Speed 159 | 92 161 160 160 160 Slowest Speed 350 | 160 350 160 160 160 Overloaded Moves . | . . . . . Propulsion Burnouts . | . . . . . Robots Hopped . | . . . . . Potential Cave-ins . | . . . . . Cave-ins Triggered . | . . . . . Exploration Rate (%) 52 | 3 67 98 92 4 Regions Visited 4 Branch Regions 3 Pre-discovered Areas 1 | . . . 1 . Known Exits Taken 4 | 1 1 1 1 . Unknown Exits Taken . | . . . . . Scrap Searched 4 | . . 1 3 . Spaces Dug 9 | . . . 9 . Terrain Destroyed 17 | . . . 17 . Melee . | . . . . . Projectile 10 | . . . 10 . AOE 7 | . . . 7 . Terrain Rammed . | . . . . . Walls Destroyed . | . . . . . Machines Disabled . | . . . . . Actions | -11 -10 -10 -10 -7 --------- Run | Yrd Mat Min Sub Rec Total 4031 | 57 364 677 2918 15 Wait 186 | . 10 119 57 . Move 3631 | 49 298 533 2738 13 Hop . | . . . . . Pick Up 30 | 5 12 2 11 . Fast Attach 3 | 3 . . . . Attach 22 | . 11 . 10 1 Detach 3 | . . . 3 . Swap 4 | . . 3 1 . Drop 10 | . 2 5 3 . Fire 141 | . 31 14 95 1 Melee . | . . . . . Ram . | . . . . . Kick . | . . . . . Crush 1 | . . 1 . . Escape Stasis . | . . . . . Rewire . | . . . . . Trap . | . . . . . Miscellaneous . | . . . . . Route ------- -11/Scrapyard -10/Materials (discovered 3 exits: *Mat / *Min x2) -10/Mines (discovered 3 exits: *Mat x2 / *Sub) -10/Subcaves (discovered 3 exits: *Mat x2 / *Rec) -7/Recycling History --------- Turn | Location | Event 7 | -11/Scrapyard | Identified exit to Materials 7 | -11/Scrapyard | Discovered exit to Materials (range 15) 56 | -11/Scrapyard | Entered Materials 56 | -10/Materials | Evolved 1 slot: Utility x1 298 | -10/Materials | Identified exit to Materials 298 | -10/Materials | Discovered exit to Materials (range 5) 300 | -10/Materials | Build established: Hacker-Mutant 546 | -10/Materials | Identified exit to Mines 546 | -10/Materials | Discovered exit to Mines (range 16) 629 | -10/Materials | Discovered exit to Mines (range 10) 653 | -10/Materials | Entered Mines 682 | -10/Mines | Discovered exit to Materials (range 3) 1076 | -10/Mines | Found a hidden stash of uninstalled traps 1254 | -10/Mines | Discovered exit to Materials (range 8) 1407 | -10/Mines | Identified exit to Subcaves 1407 | -10/Mines | Discovered exit to Subcaves (range 10) 1544 | -10/Mines | Assisted by bots powering up and referring to "LRC-V3" 1675 | -10/Mines | Entered Subcaves 1675 | -10/Subcaves | Accompanied by 3 allies 1676 | -10/Subcaves | A swath of the cavern ceiling suddenly collapsed 2148 | -10/Subcaves | Learned location of Zion (-7) 2148 | -10/Subcaves | Met a Zionite searching for "candidates" 2181 | -10/Subcaves | Learned Materials stockpile data 2193 | -10/Subcaves | Disturbed a concealed Subdweller 2390 | -10/Subcaves | Identified exit to Materials 2390 | -10/Subcaves | Discovered exit to Materials (range 10) 2440 | -10/Subcaves | Lost 3 parts (1p1u1w) 2645 | -10/Subcaves | Shifting Twisted Machinery released Mak. Leg 2852 | -10/Subcaves | Learned location of 1 exit from Materials 2925 | -10/Subcaves | Shifting Twisted Machinery released Riot Gun 2935 | -10/Subcaves | Shifting Twisted Machinery released Riot Gun 3143 | -10/Subcaves | A swath of the cavern ceiling suddenly collapsed 3673 | -10/Subcaves | Lost 3 parts (1n1u1w) 3998 | -10/Subcaves | Identified exit to Recycling 3998 | -10/Subcaves | Discovered exit to Recycling (range 15) 4017 | -10/Subcaves | Core integrity fell below 50% 4321 | -10/Subcaves | Shifting Twisted Machinery released Sub. Beam Cannon 5278 | -10/Subcaves | Visited 4L-MR0's lab 5388 | -10/Subcaves | Core integrity fell below 20% 5502 | -10/Subcaves | Discovered exit to Materials (range 14) 6382 | -10/Subcaves | Entered Recycling 6405 | -7/Recycling | Destroyed by Y-54 Guardian with Flak Gun Last Messages --------------- 05452_ V#HB0VW:WIOU4 &ZQ4DCDPT 05502_ EXIT=FOUND: MATERIALS 05562_ System corrupted: Matter fused (-10). 05627_ System corrupted: Energy discharge (-40). 05633_ Subatomizers dissect the Disposable Heat Sink. 05731_ System corrupted: Heat flow error (+198). 05737_ Subatomizers dissect the Sub. Power Source. 05910_ System corrupted: Component data lost. 05959_ System corrupted: Energy discharge (-21). 06091_ System corrupted: Matter fused (-10). 06174_ Acquired 10 matter. 06257_ System corrupted: IFF burst signal emitted. 06312_ Acquired 9 matter. 06363_ Acquired 1 matter. LOCATION=RECYCLING GOAL=ESCAPE 06405_ Y-54 Guardian springs to life. Map ----- +----------------------------------------------------+ | ?????????????????????????????????????????????????? | | ?????????????????????????????????????????????????? | | ?????????????????????????????????????????????????? | | ?????????????????????????????????????????????????? | | ?????????????????????????????????????????????????? | | ?????????????????????????????????????????????????? | | ?????????????????????????????????????????????????? | | ?????????????????????????????????????????????????? | | ?????????????????????????????????????????????????? | | ?????????????????????????????????????????????????? | | ?????????????????????????????????????????????????? | | ?????????????????????????????????????????????????? | | ?????????????????????????????????????????????????? | | ?????????????????????????????????????????????????? | | ?????????????????????????????????????????????????? | | ?????????????????????????????????????????????????? | | ?????????????????????????????????????????????????? | | ?????????????????????????????????????????????????? | | ?????????????????????????????????????????????????? | | ?????????????????????????????????????????????????? | | ?????????????????????????????????????????????????? | | ?????????????????????????????????????????????????? | | ???????????###+#########+################????????? | | ?????????? #????????? | | ?????????? #????????? | | ?????????? r @ #????????? | | ?????????????????#######Y################????????? | | ???????????????????????##????????????????????????? | | ?????????????????????????????????????????????????? | | ?????????????????????????????????????????????????? | | ?????????????????????????????????????????????????? | | ?????????????????????????????????????????????????? | | ?????????????????????????????????????????????????? | | | | | | | | | | | | | | | | | | | | | | | | | | | | | | | | | | | +----------------------------------------------------+ Best States ------------- Heat Dissipation 25 Energy Generation 15 Energy Capacity 250 Matter Stores 300 Matter Capacity 300 Sight Range 16 Terrain Scan Density 10 Armor Coverage 150 Resistance: KI 35 Resistance: TH 35 Resistance: EX 35 Resistance: EM 35 Resistance: I 35 Resistance: S 35 Resistance: P 35 Evasion (%) 55 Recoil Reduction 2 Offensive Hacking 31 Item Schematics ----------------- None Robot Schematics ------------------ None Fabricated ------------ Nothing Repaired ---------- Nothing Studied --------- None Alien Tech Used ----------------- None Achievements -------------- None Challenges ------------ None Game ------ Seed MiningDecoyWarhead Manual? 0 Play Time 00:22:37 Cumulative 123.3 hours Start 2025.11.20 @ 12:43:18 End 2025.11.20 @ 13:06:08 Sessions 1 Manual Loads 0 Difficulty Explorer Special Mode None Game No. 139 Rogue 0 Adventurer 0 Explorer 139 Win Type - Total 0 Types 0/0/0/0/0/0/0/0/0/0 Lore% 65 Gallery% 65 Achievement% 49 Wizard Run 0 Options --------- Layout 1 ASCII 0 Keyboard 0 Movement Mouse Keybinds 0 Fullscreen 1 Font 24/Smallcaps Map View 50x35 Zoom Use 0% Tactical HUD 1 Map Filters NONE Filters NONE Steam 1 RUN: 5c6b3297-5baa-49c4-b4ac-d5016b13110f